[Event "Late-Titled-Tuesday-Blitz-March-26-2024"]
[Site "Chess.com"]
[Date "2024.03.26"]
[Round "2"]
[White "manitodeplomo"]
[Black "DrVelja"]
[Result "0-1"]
[WhiteElo "2644"]
[BlackElo "3003"]
[TimeControl "180+1"]
[EndTime "14:18:03 PDT"]
[Termination "DrVelja won by checkmate"]

1. d4 {[%clk 0:03:00.9]} 1... Nf6 {[%clk 0:02:59.7]} 2. c4 {[%clk 0:02:57.1]}
2... g6 {[%clk 0:03:00.2]} 3. Nc3 {[%clk 0:02:57]} 3... Bg7 {[%clk 0:03:01]} 4.
e4 {[%clk 0:02:57.2]} 4... d6 {[%clk 0:03:01.9]} 5. Be2 {[%clk 0:02:57.2]} 5...
O-O {[%clk 0:03:02.3]} 6. Nf3 {[%clk 0:02:57.8]} 6... Bg4 {[%clk 0:03:00.1]} 7.
Bg5 {[%clk 0:02:48.4]} 7... Bxf3 {[%clk 0:02:49]} 8. gxf3 {[%clk 0:02:41.8]}
8... e5 {[%clk 0:02:49.1]} 9. d5 {[%clk 0:02:38.3]} 9... Qe8 {[%clk 0:02:44.3]}
10. b4 {[%clk 0:02:07.6]} 10... Nh5 {[%clk 0:02:42.2]} 11. Be3 {[%clk
0:02:04.5]} 11... a5 {[%clk 0:02:41.8]} 12. a3 {[%clk 0:02:04]} 12... Na6 {[%clk
0:02:42.3]} 13. Rb1 {[%clk 0:02:03.5]} 13... Nf4 {[%clk 0:02:42.9]} 14. Bf1
{[%clk 0:01:55.7]} 14... f5 {[%clk 0:02:41.7]} 15. c5 {[%clk 0:01:53.6]} 15...
axb4 {[%clk 0:02:40.1]} 16. axb4 {[%clk 0:01:52.1]} 16... Kh8 {[%clk 0:02:29.3]}
17. Rg1 {[%clk 0:01:44.8]} 17... Qe7 {[%clk 0:02:22.9]} 18. c6 {[%clk
0:01:28.4]} 18... bxc6 {[%clk 0:02:14]} 19. dxc6 {[%clk 0:01:29.3]} 19... d5
{[%clk 0:02:10.8]} 20. Bxf4 {[%clk 0:01:20]} 20... exf4 {[%clk 0:02:10.5]} 21.
Nxd5 {[%clk 0:01:20.6]} 21... Qe5 {[%clk 0:02:11.2]} 22. Bxa6 {[%clk 0:00:46.5]}
22... Rxa6 {[%clk 0:02:12.1]} 23. Qc2 {[%clk 0:00:44.7]} 23... fxe4 {[%clk
0:01:50.1]} 24. fxe4 {[%clk 0:00:45.6]} 24... Rxc6 {[%clk 0:01:48]} 25. Qxc6
{[%clk 0:00:39]} 25... Qxe4+ {[%clk 0:01:48.5]} 26. Kd2 {[%clk 0:00:39.1]} 26...
Rd8 {[%clk 0:01:49]} 27. Rg5 {[%clk 0:00:19.8]} 27... Qxb1 {[%clk 0:01:46.3]}
28. Qxc7 {[%clk 0:00:19.4]} 28... Qxb4+ {[%clk 0:01:42.8]} 29. Ke2 {[%clk
0:00:16.3]} 29... Qe4+ {[%clk 0:01:41.7]} 30. Kf1 {[%clk 0:00:16.7]} 30... Qh1+
{[%clk 0:01:40.7]} 31. Ke2 {[%clk 0:00:16.1]} 31... Re8+ {[%clk 0:01:41.3]} 32.
Kd3 {[%clk 0:00:06]} 32... Qe4+ {[%clk 0:01:35.7]} 33. Kd2 {[%clk 0:00:05.3]}
33... Qd4+ {[%clk 0:01:36.1]} 34. Kc2 {[%clk 0:00:04.8]} 34... Re2+ {[%clk
0:01:36.6]} 35. Kb3 {[%clk 0:00:05.4]} 35... Rb2+ {[%clk 0:01:18.7]} 36. Ka3
{[%clk 0:00:04.5]} 36... Bf8+ {[%clk 0:01:19.3]} 37. Ne7 {[%clk 0:00:01.2]}
37... Qb4# {[%clk 0:01:19.6]} 0-1

[Event "Late-Titled-Tuesday-Blitz-March-26-2024"]
[Site "Chess.com"]
[Date "2024.03.26"]
[Round "2"]
[White "Chesstiger64"]
[Black "PepeCuenca"]
[Result "0-1"]
[WhiteElo "2408"]
[BlackElo "2730"]
[TimeControl "180+1"]
[EndTime "14:18:10 PDT"]
[Termination "PepeCuenca won by resignation"]

1. d4 {[%clk 0:03:00.9]} 1... Nf6 {[%clk 0:02:58.9]} 2. Nf3 {[%clk 0:03:01.4]}
2... g6 {[%clk 0:02:59.2]} 3. e3 {[%clk 0:03:02]} 3... Bg7 {[%clk 0:02:59.4]} 4.
Be2 {[%clk 0:03:02.2]} 4... O-O {[%clk 0:02:59.4]} 5. O-O {[%clk 0:03:02.8]}
5... d5 {[%clk 0:03:00.1]} 6. c4 {[%clk 0:03:03.1]} 6... c6 {[%clk 0:02:57.7]}
7. Nc3 {[%clk 0:03:02.2]} 7... Bf5 {[%clk 0:02:52.2]} 8. b4 {[%clk 0:03:02.2]}
8... dxc4 {[%clk 0:02:42.5]} 9. Bxc4 {[%clk 0:03:01.3]} 9... a5 {[%clk
0:02:33.9]} 10. b5 {[%clk 0:03:00.7]} 10... c5 {[%clk 0:02:34.1]} 11. Bb2 {[%clk
0:02:54]} 11... Nbd7 {[%clk 0:02:18.5]} 12. Nh4 {[%clk 0:02:45.8]} 12... Nb6
{[%clk 0:02:12.6]} 13. Qe2 {[%clk 0:02:19]} 13... Bg4 {[%clk 0:02:01.9]} 14. f3
{[%clk 0:02:18.7]} 14... Nxc4 {[%clk 0:02:01.6]} 15. Qxc4 {[%clk 0:02:15.1]}
15... Be6 {[%clk 0:02:00.2]} 16. Qxc5 {[%clk 0:02:10.3]} 16... Rc8 {[%clk
0:01:56.5]} 17. Qe5 {[%clk 0:01:32]} 17... Nd5 {[%clk 0:01:47.9]} 18. Qxg7+
{[%clk 0:01:10]} 18... Kxg7 {[%clk 0:01:47.3]} 19. Nxd5 {[%clk 0:01:09.8]} 19...
Bxd5 {[%clk 0:01:42.9]} 20. e4 {[%clk 0:01:10.2]} 20... Bc4 {[%clk 0:01:41.8]}
21. d5+ {[%clk 0:01:09.5]} 21... Kg8 {[%clk 0:01:40.9]} 22. Rfd1 {[%clk
0:01:08.9]} 22... Bxb5 {[%clk 0:01:37.8]} 23. f4 {[%clk 0:01:09.2]} 23... Rc2
{[%clk 0:01:35.5]} 24. Bd4 {[%clk 0:01:06.2]} 24... Qc8 {[%clk 0:01:33.2]} 25.
f5 {[%clk 0:01:04.2]} 25... Qc4 {[%clk 0:01:31.2]} 26. h3 {[%clk 0:00:58.8]}
26... g5 {[%clk 0:01:21.8]} 27. Nf3 {[%clk 0:00:57.9]} 27... Qe2 {[%clk
0:01:21.4]} 28. Ne1 {[%clk 0:00:45.8]} 28... Rd2 {[%clk 0:01:15.6]} 29. Rxd2
{[%clk 0:00:44.5]} 29... Qxd2 {[%clk 0:01:15.7]} 30. Nf3 {[%clk 0:00:42.5]}
30... Qd3 {[%clk 0:01:12.2]} 31. Rc1 {[%clk 0:00:35.5]} 31... Qxe4 {[%clk
0:01:09.9]} 32. Rc7 {[%clk 0:00:35.1]} 32... Be2 {[%clk 0:01:04.7]} 33. Bc3
{[%clk 0:00:26.1]} 33... Bxf3 {[%clk 0:00:56.2]} 34. gxf3 {[%clk 0:00:26.3]}
34... Qxf3 {[%clk 0:00:55.4]} 35. d6 {[%clk 0:00:25.4]} 35... exd6 {[%clk
0:00:52.7]} 36. Rc4 {[%clk 0:00:22.4]} 36... Qxf5 {[%clk 0:00:47.4]} 37. Rg4
{[%clk 0:00:19.9]} 37... h5 {[%clk 0:00:46.8]} 38. Rg3 {[%clk 0:00:19.3]} 38...
f6 {[%clk 0:00:46.6]} 0-1

[Event "Late-Titled-Tuesday-Blitz-March-26-2024"]
[Site "Chess.com"]
[Date "2024.03.26"]
[Round "2"]
[White "Anton_Demchenko"]
[Black "BabageldiAnnaberdiyev"]
[Result "0-1"]
[WhiteElo "2955"]
[BlackElo "2642"]
[TimeControl "180+1"]
[EndTime "14:18:13 PDT"]
[Termination "BabageldiAnnaberdiyev won by resignation"]

1. e4 {[%clk 0:03:00.9]} 1... e6 {[%clk 0:02:57.8]} 2. d3 {[%clk 0:03:00.9]}
2... d5 {[%clk 0:02:57.1]} 3. Nd2 {[%clk 0:03:01.7]} 3... Nf6 {[%clk 0:02:56.4]}
4. e5 {[%clk 0:03:02.2]} 4... Nfd7 {[%clk 0:02:55.6]} 5. f4 {[%clk 0:03:03]}
5... c5 {[%clk 0:02:55.6]} 6. Ndf3 {[%clk 0:03:03.8]} 6... Nc6 {[%clk
0:02:56.2]} 7. g3 {[%clk 0:03:04.5]} 7... Be7 {[%clk 0:02:52.9]} 8. Bg2 {[%clk
0:03:05.2]} 8... b5 {[%clk 0:02:46.4]} 9. Nh3 {[%clk 0:03:04.8]} 9... Bb7 {[%clk
0:02:46.6]} 10. O-O {[%clk 0:03:05.1]} 10... Qb6 {[%clk 0:02:45.7]} 11. Kh1
{[%clk 0:03:04.7]} 11... h6 {[%clk 0:02:45.6]} 12. Qe2 {[%clk 0:03:03.5]} 12...
g6 {[%clk 0:02:42.6]} 13. c3 {[%clk 0:02:59.5]} 13... a5 {[%clk 0:02:41.3]} 14.
Nf2 {[%clk 0:02:53.1]} 14... b4 {[%clk 0:02:37.8]} 15. c4 {[%clk 0:02:51.7]}
15... d4 {[%clk 0:02:23.5]} 16. Bd2 {[%clk 0:02:44.6]} 16... a4 {[%clk 0:02:22]}
17. Ne4 {[%clk 0:02:44.6]} 17... O-O-O {[%clk 0:02:16.4]} 18. Qd1 {[%clk
0:02:37.7]} 18... Qa7 {[%clk 0:02:12.3]} 19. Rf2 {[%clk 0:02:08.9]} 19... Nb6
{[%clk 0:02:10.3]} 20. Qe2 {[%clk 0:02:02.2]} 20... a3 {[%clk 0:02:09.7]} 21.
bxa3 {[%clk 0:01:48.8]} 21... bxa3 {[%clk 0:02:08.1]} 22. Rb1 {[%clk 0:01:44.8]}
22... Nb4 {[%clk 0:02:08]} 23. Nxc5 {[%clk 0:01:39.3]} 23... Bxc5 {[%clk
0:02:04.4]} 24. Bxb4 {[%clk 0:01:39.4]} 24... Na4 {[%clk 0:02:02.4]} 25. Bxc5
{[%clk 0:01:36.3]} 25... Nxc5 {[%clk 0:01:51]} 26. Rff1 {[%clk 0:01:21.5]} 26...
Bc6 {[%clk 0:01:50.2]} 27. Nd2 {[%clk 0:01:17.6]} 27... Qa8 {[%clk 0:01:46.7]}
28. Bxc6 {[%clk 0:01:00.9]} 28... Qxc6+ {[%clk 0:01:47.6]} 29. Kg1 {[%clk
0:01:01.5]} 29... Kc7 {[%clk 0:01:32.8]} 30. Rb5 {[%clk 0:00:57.1]} 30... Rb8
{[%clk 0:01:30.8]} 31. Rfb1 {[%clk 0:00:57.8]} 31... Na4 {[%clk 0:01:26.3]} 32.
Ne4 {[%clk 0:00:51.5]} 32... Nc3 {[%clk 0:01:11.4]} 33. Nxc3 {[%clk 0:00:51.5]}
33... dxc3 {[%clk 0:01:12.3]} 34. Qc2 {[%clk 0:00:52.2]} 34... Rxb5 {[%clk
0:01:11.7]} 35. Rxb5 {[%clk 0:00:52]} 35... Rb8 {[%clk 0:01:09]} 36. Rxb8 {[%clk
0:00:49.9]} 36... Kxb8 {[%clk 0:01:09.9]} 37. Qxc3 {[%clk 0:00:50.5]} 37... Qb6+
{[%clk 0:01:09.3]} 38. Kf1 {[%clk 0:00:39.4]} 38... Qb1+ {[%clk 0:01:08.3]} 39.
Ke2 {[%clk 0:00:40]} 39... Qxa2+ {[%clk 0:01:08.6]} 40. Kf3 {[%clk 0:00:36.1]}
40... Qb2 {[%clk 0:01:05.1]} 41. Qa5 {[%clk 0:00:34]} 41... a2 {[%clk
0:01:05.2]} 42. Qd8+ {[%clk 0:00:33.4]} 42... Ka7 {[%clk 0:01:03.5]} 43. Qa5+
{[%clk 0:00:22.1]} 43... Kb7 {[%clk 0:01:03.2]} 44. c5 {[%clk 0:00:22.3]} 44...
a1=Q {[%clk 0:01:00.7]} 45. c6+ {[%clk 0:00:22.3]} 45... Kxc6 {[%clk 0:01:00.5]}
0-1

[Event "Late-Titled-Tuesday-Blitz-March-26-2024"]
[Site "Chess.com"]
[Date "2024.03.26"]
[Round "2"]
[White "Slovak_fighter2000"]
[Black "Zhigalko_Sergei"]
[Result "0-1"]
[WhiteElo "2593"]
[BlackElo "2892"]
[TimeControl "180+1"]
[EndTime "14:18:14 PDT"]
[Termination "Zhigalko_Sergei won by resignation"]

1. d4 {[%clk 0:02:59.7]} 1... Nf6 {[%clk 0:02:57.3]} 2. Nf3 {[%clk 0:03:00]}
2... e6 {[%clk 0:02:57.7]} 3. c4 {[%clk 0:02:59.6]} 3... b6 {[%clk 0:02:57.4]}
4. a3 {[%clk 0:02:58.8]} 4... Ba6 {[%clk 0:02:55.3]} 5. Qc2 {[%clk 0:02:58.6]}
5... Bb7 {[%clk 0:02:55.1]} 6. Nc3 {[%clk 0:02:58.4]} 6... c5 {[%clk 0:02:55.2]}
7. e4 {[%clk 0:02:58.9]} 7... cxd4 {[%clk 0:02:55.3]} 8. Nxd4 {[%clk 0:02:59.4]}
8... Nc6 {[%clk 0:02:56.2]} 9. Nxc6 {[%clk 0:02:55.8]} 9... Bxc6 {[%clk
0:02:56.5]} 10. Be2 {[%clk 0:02:55.9]} 10... Qc7 {[%clk 0:02:43.4]} 11. O-O
{[%clk 0:02:46.1]} 11... Bc5 {[%clk 0:02:43]} 12. b4 {[%clk 0:02:32.2]} 12...
Bd4 {[%clk 0:02:42.4]} 13. Bf3 {[%clk 0:02:28.5]} 13... O-O {[%clk 0:02:32.4]}
14. Bg5 {[%clk 0:02:16]} 14... Rac8 {[%clk 0:02:11.1]} 15. Bxf6 {[%clk
0:02:09.9]} 15... Bxf6 {[%clk 0:02:10.2]} 16. Rac1 {[%clk 0:02:05.9]} 16... Qe5
{[%clk 0:02:03.2]} 17. Qd3 {[%clk 0:01:59.5]} 17... Rc7 {[%clk 0:01:58.2]} 18.
Nb5 {[%clk 0:01:51.7]} 18... Bxb5 {[%clk 0:01:50.7]} 19. cxb5 {[%clk 0:01:52.6]}
19... Rfc8 {[%clk 0:01:50.7]} 20. Rxc7 {[%clk 0:01:50.3]} 20... Rxc7 {[%clk
0:01:51.6]} 21. g3 {[%clk 0:01:46.3]} 21... g6 {[%clk 0:01:43.2]} 22. Bg2 {[%clk
0:01:43.8]} 22... Qb2 {[%clk 0:01:37]} 23. Rd1 {[%clk 0:01:38.5]} 23... Be5
{[%clk 0:01:23.9]} 24. Rb1 {[%clk 0:01:14.1]} 24... Qa2 {[%clk 0:01:20.9]} 25.
Rf1 {[%clk 0:01:01.8]} 25... d6 {[%clk 0:01:00.8]} 26. f4 {[%clk 0:00:46.4]}
26... Rc3 {[%clk 0:01:00.2]} 27. Qd1 {[%clk 0:00:40.9]} 27... Rc2 {[%clk
0:01:00.3]} 28. Bf3 {[%clk 0:00:37.7]} 28... Rd2 {[%clk 0:00:54]} 29. Qxd2
{[%clk 0:00:28.9]} 29... Qxd2 {[%clk 0:00:52.1]} 30. fxe5 {[%clk 0:00:29.8]}
30... dxe5 {[%clk 0:00:40.3]} 31. Rf2 {[%clk 0:00:24.5]} 31... Qe3 {[%clk
0:00:38.5]} 32. Kg2 {[%clk 0:00:21.6]} 32... Qxa3 {[%clk 0:00:37.7]} 0-1

[Event "Late-Titled-Tuesday-Blitz-March-26-2024"]
[Site "Chess.com"]
[Date "2024.03.26"]
[Round "2"]
[White "thesupera12"]
[Black "cakeuvdort"]
[Result "0-1"]
[WhiteElo "2417"]
[BlackElo "2149"]
[TimeControl "180+1"]
[EndTime "14:18:15 PDT"]
[Termination "cakeuvdort won by resignation"]

1. Nc3 {[%clk 0:02:56.3]} 1... d5 {[%clk 0:02:58.7]} 2. b3 {[%clk 0:02:55.1]}
2... Bf5 {[%clk 0:02:55.7]} 3. Bb2 {[%clk 0:02:54.5]} 3... Nf6 {[%clk
0:02:54.5]} 4. e3 {[%clk 0:02:54.3]} 4... e6 {[%clk 0:02:54.9]} 5. Nf3 {[%clk
0:02:53.7]} 5... h6 {[%clk 0:02:55.4]} 6. h3 {[%clk 0:02:51.4]} 6... c6 {[%clk
0:02:48.5]} 7. Bd3 {[%clk 0:02:50.8]} 7... Bxd3 {[%clk 0:02:43.6]} 8. cxd3
{[%clk 0:02:51.7]} 8... Nbd7 {[%clk 0:02:44.1]} 9. O-O {[%clk 0:02:51.9]} 9...
Bd6 {[%clk 0:02:44.3]} 10. e4 {[%clk 0:02:50.8]} 10... Ne5 {[%clk 0:02:38.6]}
11. Nxe5 {[%clk 0:02:27.6]} 11... Bxe5 {[%clk 0:02:37.7]} 12. Qc2 {[%clk
0:02:22.8]} 12... O-O {[%clk 0:02:32.1]} 13. f4 {[%clk 0:02:21.7]} 13... Bd4+
{[%clk 0:02:31.4]} 14. Kh1 {[%clk 0:02:21.9]} 14... Nh5 {[%clk 0:02:29.5]} 15.
Ne2 {[%clk 0:02:20.2]} 15... Bxb2 {[%clk 0:02:28.6]} 16. Qxb2 {[%clk 0:02:21.1]}
16... Qf6 {[%clk 0:02:14]} 17. Qe5 {[%clk 0:02:07.7]} 17... g6 {[%clk
0:01:44.9]} 18. g4 {[%clk 0:01:59.7]} 18... Qxe5 {[%clk 0:01:43.1]} 19. fxe5
{[%clk 0:01:58.9]} 19... Ng7 {[%clk 0:01:43.3]} 20. exd5 {[%clk 0:01:57.8]}
20... exd5 {[%clk 0:01:34.2]} 21. d4 {[%clk 0:01:55.8]} 21... Ne6 {[%clk
0:01:29.9]} 22. Rf6 {[%clk 0:01:49.6]} 22... Ng5 {[%clk 0:01:23.5]} 23. d3
{[%clk 0:01:23.6]} 23... Nxh3 {[%clk 0:01:21.3]} 24. Kg2 {[%clk 0:01:23.7]}
24... Ng5 {[%clk 0:01:20]} 25. Raf1 {[%clk 0:01:24.2]} 25... Kg7 {[%clk
0:01:19.1]} 26. Nc3 {[%clk 0:01:14.3]} 26... Ne6 {[%clk 0:01:11.5]} 27. Ne2
{[%clk 0:01:11.3]} 27... a5 {[%clk 0:01:07.6]} 28. Kg3 {[%clk 0:01:02.3]} 28...
a4 {[%clk 0:00:59.1]} 29. b4 {[%clk 0:01:01.6]} 29... a3 {[%clk 0:00:59.4]} 30.
Rb1 {[%clk 0:00:57.1]} 30... Ra4 {[%clk 0:00:28.7]} 31. Rff1 {[%clk 0:00:56.9]}
31... b6 {[%clk 0:00:23]} 32. Rfc1 {[%clk 0:00:55.5]} 32... Rc8 {[%clk
0:00:21.9]} 33. Rb3 {[%clk 0:00:56.1]} 33... c5 {[%clk 0:00:20.3]} 34. bxc5
{[%clk 0:00:55.6]} 34... bxc5 {[%clk 0:00:21.2]} 35. Rb7 {[%clk 0:00:54.6]}
35... Nxd4 {[%clk 0:00:16.6]} 36. Nc3 {[%clk 0:00:52.5]} 36... Rb4 {[%clk
0:00:11.7]} 37. Rf1 {[%clk 0:00:50.7]} 37... Rxb7 {[%clk 0:00:11.5]} 38. Nxd5
{[%clk 0:00:48.3]} 38... Ne6 {[%clk 0:00:12.4]} 39. Ne7 {[%clk 0:00:47.1]} 39...
Rxe7 {[%clk 0:00:12.6]} 0-1

[Event "Late-Titled-Tuesday-Blitz-March-26-2024"]
[Site "Chess.com"]
[Date "2024.03.26"]
[Round "2"]
[White "Meri-Arabidze"]
[Black "jefferyx"]
[Result "0-1"]
[WhiteElo "2676"]
[BlackElo "3100"]
[TimeControl "180+1"]
[EndTime "14:18:17 PDT"]
[Termination "jefferyx won on time"]

1. Nf3 {[%clk 0:03:00.9]} 1... g6 {[%clk 0:02:59]} 2. g3 {[%clk 0:03:00.7]} 2...
Bg7 {[%clk 0:02:59.6]} 3. Bg2 {[%clk 0:03:01.1]} 3... d6 {[%clk 0:03:00.3]} 4.
O-O {[%clk 0:03:01.1]} 4... Nc6 {[%clk 0:03:01.1]} 5. c4 {[%clk 0:03:01.1]} 5...
Bd7 {[%clk 0:03:01.9]} 6. Nc3 {[%clk 0:02:54.6]} 6... Qc8 {[%clk 0:03:02.5]} 7.
Re1 {[%clk 0:02:54.6]} 7... Bh3 {[%clk 0:03:02.6]} 8. Bh1 {[%clk 0:02:54.6]}
8... h5 {[%clk 0:03:03.1]} 9. Ng5 {[%clk 0:02:48.8]} 9... h4 {[%clk 0:03:02.5]}
10. Nd5 {[%clk 0:02:34.4]} 10... hxg3 {[%clk 0:03:00]} 11. hxg3 {[%clk
0:02:29.5]} 11... Bd7 {[%clk 0:02:54.7]} 12. Bg2 {[%clk 0:02:23.1]} 12... e6
{[%clk 0:02:54.1]} 13. Nf4 {[%clk 0:02:21.3]} 13... Qd8 {[%clk 0:02:50.6]} 14.
d3 {[%clk 0:02:09]} 14... Nd4 {[%clk 0:02:11]} 15. e3 {[%clk 0:01:52.5]} 15...
Qxg5 {[%clk 0:01:41.5]} 16. exd4 {[%clk 0:01:52.5]} 16... Qh6 {[%clk 0:01:42.2]}
17. Kf1 {[%clk 0:01:35.2]} 17... g5 {[%clk 0:01:36.3]} 18. Nh3 {[%clk
0:01:14.2]} 18... Bxd4 {[%clk 0:01:36.1]} 19. Bxg5 {[%clk 0:01:13.1]} 19... Qg7
{[%clk 0:01:36.2]} 20. Be3 {[%clk 0:00:56.2]} 20... Bxe3 {[%clk 0:01:30]} 21.
Rxe3 {[%clk 0:00:56.4]} 21... Ne7 {[%clk 0:01:25.3]} 22. Nf4 {[%clk 0:00:50.3]}
22... Nf5 {[%clk 0:01:22.4]} 23. Re1 {[%clk 0:00:50.2]} 23... Nd4 {[%clk
0:01:18.5]} 24. b4 {[%clk 0:00:35]} 24... O-O-O {[%clk 0:01:05]} 25. b5 {[%clk
0:00:34.4]} 25... Rh2 {[%clk 0:01:03.7]} 26. Qa4 {[%clk 0:00:24.8]} 26... Kb8
{[%clk 0:01:03.7]} 27. Re4 {[%clk 0:00:16.1]} 27... Rdh8 {[%clk 0:00:48]} 28.
Rae1 {[%clk 0:00:08.8]} 28... f5 {[%clk 0:00:44.4]} 29. Rxd4 {[%clk 0:00:06.5]}
29... Qxd4 {[%clk 0:00:44.4]} 30. Kg1 {[%clk 0:00:06.7]} 30... e5 {[%clk
0:00:37.6]} 31. Nd5 {[%clk 0:00:04.5]} 31... f4 {[%clk 0:00:37.6]} 0-1

[Event "Late-Titled-Tuesday-Blitz-March-26-2024"]
[Site "Chess.com"]
[Date "2024.03.26"]
[Round "2"]
[White "Boninknights"]
[Black "kagg1125"]
[Result "1-0"]
[WhiteElo "2376"]
[BlackElo "2517"]
[TimeControl "180+1"]
[EndTime "14:18:18 PDT"]
[Termination "Boninknights won by resignation"]

1. d4 {[%clk 0:02:57.9]} 1... Nf6 {[%clk 0:02:56.9]} 2. Nf3 {[%clk 0:02:57.5]}
2... g6 {[%clk 0:02:54]} 3. c4 {[%clk 0:02:57.1]} 3... Bg7 {[%clk 0:02:53.8]} 4.
Nc3 {[%clk 0:02:56.9]} 4... O-O {[%clk 0:02:50.9]} 5. e4 {[%clk 0:02:56.6]} 5...
d6 {[%clk 0:02:51.5]} 6. Be2 {[%clk 0:02:56.2]} 6... e5 {[%clk 0:02:51.9]} 7.
dxe5 {[%clk 0:02:56]} 7... dxe5 {[%clk 0:02:52.1]} 8. Qxd8 {[%clk 0:02:55.4]}
8... Rxd8 {[%clk 0:02:53]} 9. Bg5 {[%clk 0:02:53.2]} 9... c6 {[%clk 0:02:52.5]}
10. Nxe5 {[%clk 0:02:51.6]} 10... Re8 {[%clk 0:02:52.7]} 11. O-O-O {[%clk
0:02:51]} 11... Nbd7 {[%clk 0:02:41.9]} 12. Nxd7 {[%clk 0:02:49.5]} 12... Nxd7
{[%clk 0:02:41.3]} 13. f3 {[%clk 0:02:37.2]} 13... Ne5 {[%clk 0:02:41.3]} 14.
Kc2 {[%clk 0:02:30.5]} 14... f5 {[%clk 0:02:36.2]} 15. b3 {[%clk 0:02:26.8]}
15... fxe4 {[%clk 0:02:34.8]} 16. fxe4 {[%clk 0:02:15.2]} 16... Be6 {[%clk
0:02:29.7]} 17. Rhf1 {[%clk 0:02:12.2]} 17... h6 {[%clk 0:02:28.3]} 18. Bf6
{[%clk 0:02:11.2]} 18... Bxf6 {[%clk 0:02:26.1]} 19. Rxf6 {[%clk 0:02:09.7]}
19... Kg7 {[%clk 0:02:27]} 20. Rff1 {[%clk 0:02:03.7]} 20... Re7 {[%clk
0:02:19.8]} 21. Na4 {[%clk 0:02:02.4]} 21... b6 {[%clk 0:02:19.8]} 22. Nb2
{[%clk 0:02:01.8]} 22... c5 {[%clk 0:02:19.1]} 23. Nd3 {[%clk 0:02:00.4]} 23...
Nc6 {[%clk 0:02:19.3]} 24. Nf4 {[%clk 0:01:47.2]} 24... Nd4+ {[%clk 0:02:18.5]}
25. Kd2 {[%clk 0:01:45]} 25... Bg8 {[%clk 0:02:15.7]} 26. Bd3 {[%clk 0:01:38.4]}
26... Rd8 {[%clk 0:01:55.1]} 27. Nd5 {[%clk 0:01:37.3]} 27... Ree8 {[%clk
0:01:52.3]} 28. Rf2 {[%clk 0:01:32.9]} 28... b5 {[%clk 0:01:51.9]} 29. Rdf1
{[%clk 0:01:24]} 29... bxc4 {[%clk 0:01:52]} 30. bxc4 {[%clk 0:01:20.8]} 30...
Rb8 {[%clk 0:01:49.6]} 31. Kc3 {[%clk 0:01:19.6]} 31... Re6 {[%clk 0:01:42.9]}
32. Nf6 {[%clk 0:01:14.1]} 32... Ra6 {[%clk 0:01:33.1]} 33. Nxg8 {[%clk
0:01:10.2]} 33... Ra3+ {[%clk 0:01:30.3]} 34. Kd2 {[%clk 0:01:09.1]} 34... Rb2+
{[%clk 0:01:08.1]} 35. Ke3 {[%clk 0:01:07.3]} 35... Nc2+ {[%clk 0:00:40.8]} 36.
Kf4 {[%clk 0:00:55.2]} 36... Rxd3 {[%clk 0:00:38.5]} 37. Ke5 {[%clk 0:00:54.8]}
37... Rb7 {[%clk 0:00:30.5]} 38. Rxc2 {[%clk 0:00:39.7]} 38... Re7+ {[%clk
0:00:29.2]} 39. Nxe7 {[%clk 0:00:36.2]} 1-0

[Event "Late-Titled-Tuesday-Blitz-March-26-2024"]
[Site "Chess.com"]
[Date "2024.03.26"]
[Round "2"]
[White "ckgchess"]
[Black "EsmeraldasAnderson03"]
[Result "1-0"]
[WhiteElo "2909"]
[BlackElo "2606"]
[TimeControl "180+1"]
[EndTime "14:18:21 PDT"]
[Termination "ckgchess won by checkmate"]

1. e4 {[%clk 0:03:00.9]} 1... c5 {[%clk 0:02:57.4]} 2. c3 {[%clk 0:03:01.4]}
2... Nf6 {[%clk 0:02:55]} 3. e5 {[%clk 0:03:01.9]} 3... Nd5 {[%clk 0:02:54.6]}
4. d4 {[%clk 0:03:02.8]} 4... cxd4 {[%clk 0:02:54.6]} 5. Bc4 {[%clk 0:03:03.6]}
5... Nb6 {[%clk 0:02:54.1]} 6. Bb3 {[%clk 0:03:04.3]} 6... d6 {[%clk 0:02:54.7]}
7. Nf3 {[%clk 0:03:04.4]} 7... Nc6 {[%clk 0:02:50.1]} 8. exd6 {[%clk 0:03:04.6]}
8... e6 {[%clk 0:02:49.9]} 9. cxd4 {[%clk 0:03:04]} 9... Bxd6 {[%clk 0:02:47.4]}
10. Nc3 {[%clk 0:03:04.8]} 10... O-O {[%clk 0:02:47.7]} 11. O-O {[%clk
0:03:05.5]} 11... Nb4 {[%clk 0:02:44.7]} 12. Re1 {[%clk 0:03:02.6]} 12... Bd7
{[%clk 0:02:41.1]} 13. a3 {[%clk 0:02:54.9]} 13... N4d5 {[%clk 0:02:40.4]} 14.
Bc2 {[%clk 0:02:54]} 14... Rc8 {[%clk 0:02:26.1]} 15. Qd3 {[%clk 0:02:50.5]}
15... g6 {[%clk 0:02:20.3]} 16. Bh6 {[%clk 0:02:48]} 16... Re8 {[%clk 0:02:20]}
17. Ne4 {[%clk 0:02:41.2]} 17... Bf8 {[%clk 0:02:08.5]} 18. Bg5 {[%clk
0:02:31.4]} 18... f6 {[%clk 0:01:58]} 19. Bh4 {[%clk 0:02:25.9]} 19... Bg7
{[%clk 0:01:50.3]} 20. Nd6 {[%clk 0:02:19.1]} 20... Rxc2 {[%clk 0:00:51.7]} 21.
Nxe8 {[%clk 0:02:12.2]} 21... Rc6 {[%clk 0:00:48.6]} 22. Nxg7 {[%clk 0:02:11.5]}
22... Kxg7 {[%clk 0:00:48.3]} 23. Rac1 {[%clk 0:02:06.8]} 23... Nf4 {[%clk
0:00:46.7]} 24. Qe4 {[%clk 0:01:46.8]} 24... Nbd5 {[%clk 0:00:32.6]} 25. Bg3
{[%clk 0:01:39.7]} 25... Nh5 {[%clk 0:00:18.9]} 26. Rxc6 {[%clk 0:01:36.5]}
26... bxc6 {[%clk 0:00:19.8]} 27. Bd6 {[%clk 0:01:29.2]} 27... Bc8 {[%clk
0:00:11.8]} 28. Bc5 {[%clk 0:01:24.4]} 28... Nhf4 {[%clk 0:00:11.9]} 29. g3
{[%clk 0:01:19.4]} 29... Nh3+ {[%clk 0:00:11.3]} 30. Kg2 {[%clk 0:01:18.4]}
30... Ng5 {[%clk 0:00:04.8]} 31. Nxg5 {[%clk 0:01:18.3]} 31... fxg5 {[%clk
0:00:05.7]} 32. Qe5+ {[%clk 0:01:17.4]} 32... Kh6 {[%clk 0:00:06.4]} 33. h4
{[%clk 0:01:14]} 33... gxh4 {[%clk 0:00:06.1]} 34. Rh1 {[%clk 0:01:14.8]} 34...
g5 {[%clk 0:00:04.2]} 35. f4 {[%clk 0:01:02.3]} 35... gxf4 {[%clk 0:00:03.2]}
36. Rxh4+ {[%clk 0:01:02.3]} 36... Kg6 {[%clk 0:00:03.8]} 37. Qh5+ {[%clk
0:00:56.4]} 37... Kf6 {[%clk 0:00:04.1]} 38. Qh6+ {[%clk 0:00:54.8]} 38... Kf5
{[%clk 0:00:04.5]} 39. Qxh7+ {[%clk 0:00:54.9]} 39... Kf6 {[%clk 0:00:02.8]} 40.
Rh6+ {[%clk 0:00:55.1]} 40... Kg5 {[%clk 0:00:01.6]} 41. Qg6# {[%clk 0:00:55.7]}
1-0